Cogmind - Beta 11.1 @@@ ROGUE MODE // 2022.05.12 @ 09:59:28 Player: ChromeKnight Result: Self-destructed Performance ------------- Evolutions (5) 2500 Regions Visited (11) 2200 Robots Destroyed (51) 255 Value Destroyed (1681) 1681 Prototype IDs (27) 540 Alien Tech Used (0) 0 Bonus (-162) -162 TOTAL SCORE: 7014 Bonus ------- High Alert Combat Kills 12 Entered DSFs 500 Aligned with FarCom 300 Friendly Fire -974 Cogmind --------- Core Integrity 961/1000 Matter 300/300 Energy 113/300 System Corruption 2% Temperature Cool (0) Movement Walking (90) Location -5/Factory Parts ------- > --- POWER (1) -------- Enhanced Nuclear Core > --- PROPULSION (2) --- Potential Leg Potential Leg > --- UTILITY (12) ----- Power Amplifier Advanced Heat Sink Medium Storage Unit Launcher Guidance Computer Improved Weapon Shielding Improved Medium Armor Plating Reflective Plating Long-range Tractor Beam > --- WEAPON (2) ------- Heavy Machine Gun Improved Proton Missile Launcher > --- INVENTORY (10) --- Power Amplifier Matter Compressor (250) Launcher Guidance Computer Launcher Guidance Computer Launcher Loader Flak Gun Proton Missile Launcher Proton Missile Launcher Peak State ------------ > --- POWER ------------ Enhanced Nuclear Core > --- PROPULSION ------- Potential Leg Potential Leg > --- UTILITY ---------- Power Amplifier Advanced Heat Sink Medium Storage Unit Launcher Guidance Computer Improved Utility Shielding Improved Weapon Shielding Improved Medium Armor Plating Reflective Plating Reflective Plating Shock Absorption System Long-range Tractor Beam > --- WEAPON ----------- Heavy Machine Gun Improved Proton Missile Launcher > --- INVENTORY -------- Power Amplifier Matter Compressor Launcher Guidance Computer Launcher Guidance Computer Launcher Loader Flak Gun Proton Missile Launcher Proton Missile Launcher [Rating: 77] Favorites ----------- Power Enhanced Nuclear Core Engine Ion Engine Power Core Enhanced Nuclear Core Propulsion Aluminum Leg Leg Aluminum Leg Utility Reflective Plating Device Advanced Heat Sink Storage Medium Storage Unit Processor Targeting Computer Protection Reflective Plating Weapon Autogun Ballistic Gun Autogun Launcher YI-UF0's Doublenader Build | -11 -10 -10 -10 -9 -8 -7 -7 -6 -6 -6 -5 ------- Run | Scr Mat Min Exi Min Mat Fac DSF Fac Was Fac Fac Slots Evolved 10 | . . . . . 4 2 . 2 . . 2 Power . | . . . . . . . . . . . . Propulsion . | . . . . . . . . . . . . Utility 10 | . . . . . 4 2 . 2 . . 2 Weapon . | . . . . . . . . . . . . Parts Attached 63 | 7 3 1 . 3 13 4 4 3 5 15 5 Power 3 | 1 . . . . 1 . . . . 1 . Engine 1 | 1 . . . . . . . . . . . Core 2 | . . . . . 1 . . . . 1 . Reactor . | . . . . . . . . . . . . Propulsion 10 | 2 . . . 3 . 2 . . 2 1 . Treads . | . . . . . . . . . . . . Leg 10 | 2 . . . 3 . 2 . . 2 1 . Wheel . | . . . . . . . . . . . . Hover . | . . . . . . . . . . . . Flight . | . . . . . . . . . . . . Utility 30 | 1 1 1 . . 6 2 3 1 . 11 4 Device 7 | . . . . . 3 1 . . . 2 1 Storage 2 | 1 1 . . . . . . . . . . Processor 3 | . . 1 . . 1 . . . . 1 . Hackware . | . . . . . . . . . . . . Protection 18 | . . . . . 2 1 3 1 . 8 3 Artifact . | . . . . . . . . . . . . Weapon 20 | 3 2 . . . 6 . 1 2 3 2 1 Energy Gun . | . . . . . . . . . . . . Energy Cannon . | . . . . . . . . . . . . Ballistic Gun 16 | 3 2 . . . 5 . 1 2 2 1 . Ballistic Cannon . | . . . . . . . . . . . . Launcher 4 | . . . . . 1 . . . 1 1 1 Special Weapon . | . . . . . . . . . . . . Impact Weapon . | . . . . . . . . . . . . Slashing Weapon . | . . . . . . . . . . . . Piercing Weapon . | . . . . . . . . . . . . Special Melee Weapon . | . . . . . . . . . . . . Unidentified Prototypes 4 | . . . . . 3 . . . 1 . . Parts Lost 5 | . . . . . . . . . . 2 3 Power . | . . . . . . . . . . . . Propulsion . | . . . . . . . . . . . . Utility 5 | . . . . . . . . . . 2 3 Weapon . | . . . . . . . . . . . . Highest Loss Streak 3 | . . . . . . . . . . 1 3 To Critical Strikes . | . . . . . . . . . . . . Average Slot Usage (%) 94 | . 85 85 100 100 79 90 99 92 93 99 86 Engine 4 | . 14 14 14 14 3 . . . . . . Core 4 | . . . . . 5 7 7 6 6 6 5 Leg 18 | . 28 28 28 28 18 15 15 13 13 13 11 Device 13 | . . . . . 11 16 23 20 20 20 22 Storage 8 | . 14 14 14 14 9 7 7 6 6 6 5 Processor 7 | . . . 14 14 11 7 7 6 6 6 5 Protection 17 | . . . . . 3 19 22 25 26 31 23 Ballistic Gun 15 | . 28 28 28 28 18 15 15 13 7 6 5 Launcher 2 | . . . . . . . . . 4 6 4 Naked Turns . | . . . . . . . . . . . . Heaviest Build 61 | 14 21 21 21 21 38 46 46 53 55 61 56 Greatest Support 60 | 20 20 20 20 20 20 30 30 30 60 60 60 Greatest Overweight (x) 1 | 1 1 1 1 1 1 1 1 1 1 1 . Average Overweight (x) . | . . 1 1 1 1 1 1 1 . . . Largest Inventory Capacity 10 | 8 10 10 10 10 10 10 10 10 10 10 10 Average Capacity 9 | 6 8 10 10 10 10 10 10 10 10 10 10 Most Carried 10 | 1 5 10 10 10 10 10 10 10 9 10 10 Average Carried 9 | . 2 8 9 9 9 10 9 8 9 9 9 Final Capacity 10 | 8 10 10 10 10 10 10 10 10 10 10 10 Final Carried 10 | 1 5 9 10 10 10 10 10 9 9 10 9 Class Distribution -------------------- 100% | Mutant Dominant Class ---------------- Mutant | -10/Materials Mutant | -10/Mines Mutant | -10/Exiles Mutant | -9/Mines Mutant | -8/Materials Mutant | -7/Factory Mutant | -7/DSF Mutant | -6/Factory Mutant | -6/Waste Mutant | -6/Factory Mutant | -5/Factory Resources | -11 -10 -10 -10 -9 -8 -7 -7 -6 -6 -6 -5 ----------- Run | Scr Mat Min Exi Min Mat Fac DSF Fac Was Fac Fac Matter Collected 2553 | 211 47 214 10 104 69 . 331 . 40 1283 244 Remotely 1719 | . . . . . . . 331 . 40 1104 244 Salvage Created 2171 | . 67 215 . 138 100 . 139 . . 1125 387 Parts 124 | . 5 11 . 8 8 . 11 . . 58 23 Haulers Intercepted 2 | . . . . . 1 . . . . 1 . Recyclers Shooed 5 | . . 1 . . . . . . . 4 . Parts Field Recycled . | . . . . . . . . . . . . Retrieved Matter . | . . . . . . . . . . . . Parts Self-Destructed . | . . . . . . . . . . . . Prevented . | . . . . . . . . . . . . Kills | -11 -10 -10 -10 -9 -8 -7 -7 -6 -6 -6 -5 ------- Run | Scr Mat Min Exi Min Mat Fac DSF Fac Was Fac Fac Combat Hostiles Destroyed 34 | . 3 3 . 3 4 . 4 . . 11 6 Guns 25 | . 3 3 . 3 4 . 4 . . 5 3 AOE 6 | . . . . . . . . . . 4 2 Classes Destroyed 14 | . 2 1 . 2 2 . 1 . . 6 . Worker 3 | . . . . . 1 . . . . 2 . Builder 1 | . . . . . . . . . . 1 . Hauler 2 | . . . . . 1 . . . . 1 . Recycler 4 | . . 1 . . . . . . . 3 . Operator 1 | . 1 . . . . . . . . . . Watcher 5 | . . . . . . . . . . 4 1 Swarmer 13 | . 3 3 . . 4 . . . . 3 . Grunt 7 | . . . . 2 . . 3 . . . 2 Brawler 1 | . . . . 1 . . . . . . . Sentry 3 | . . . . . . . . . . 1 2 Specialist 2 | . . . . . . . . . . 2 . Hunter 1 | . . . . . . . . . . 1 . Programmer 6 | . . . . . . . . . . 4 2 Heavy 1 | . . . . . . . 1 . . . . Best Kill Streak 5 | . 3 3 . 3 5 . 3 . . 3 4 Combat Bots Only 3 | . 3 3 . 3 3 . 3 . . 3 2 Max Kills in Single Turn 2 | . 1 2 . 1 1 . 2 . . 1 2 Gunslinging 1 | . . 1 . . . . 1 . . . . Exploded 2 | . . . . . . . . . . 1 2 Melee . | . . . . . . . . . . . . Uniques/NPCs Destroyed 1 | . . 1 . . . . . . . . . YI-UF0 (-10/Mines) Combat | -11 -10 -10 -10 -9 -8 -7 -7 -6 -6 -6 -5 -------- Run | Scr Mat Min Exi Min Mat Fac DSF Fac Was Fac Fac Damage Taken 3463 | . 150 62 . 149 67 . 713 . . 1554 768 Core 335 | . 28 8 . 21 15 . 59 . . 165 39 Absorbed by Shields 11 | . . . . . . . 11 . . . . Redirected to Shielding 278 | . . . . . . . 69 . . 50 159 Regen/Repaired (Parts) 502 | . . . . . . . . . . 217 285 Core Remaining (%) 89 | 100 . . . 77 97 . 91 . . 80 . Volleys Fired 199 | . 10 12 . 8 9 . 10 . . 124 26 Largest 2 | . 2 2 . 2 2 . 2 . . 2 2 Hottest 100 | . 46 46 . 46 56 . 56 . . 100 73 Shots Fired 272 | . 20 24 . 16 18 . 20 . . 139 35 Gun 243 | . 20 24 . 16 18 . 20 . . 119 26 Cannon . | . . . . . . . . . . . . Launcher 29 | . . . . . . . . . . 20 9 Special . | . . . . . . . . . . . . Kinetic 243 | . 20 24 . 16 18 . 20 . . 119 26 Thermal . | . . . . . . . . . . . . Explosive 11 | . . . . . . . . . . 11 . Electromagnetic 18 | . . . . . . . . . . 9 9 Robot Hit Streak 20 | . 4 9 . 20 9 . 5 . . 11 5 Robot Miss Streak 5 | . 3 2 . 1 4 . 5 . . 5 2 Penetration Max . | . . . . . . . . . . . . Secondary Targets 2 | . . 1 . . . . 1 . . . . Max Gunslinging Chain 1 | . . 1 . . . . 1 . . . . Shots Hit Robots 180 | . 11 18 . 14 17 . 19 . . 79 22 Core Hits 118 | . 5 10 . 4 13 . 28 . . 44 14 Critical Kills . | . . . . . . . . . . . . Critical Parts Destroyed 1 | . . . . . . . . . . 1 . Critical Strikes 1 | . . . . . . . . . . 1 . Destroy 1 | . . . . . . . . . . 1 . Melee Attacks . | . . . . . . . . . . . . Impact . | . . . . . . . . . . . . Slashing . | . . . . . . . . . . . . Piercing . | . . . . . . . . . . . . Sneak Attacks . | . . . . . . . . . . . . Combat Hostiles . | . . . . . . . . . . . . Follow-up Attacks . | . . . . . . . . . . . . Damage Inflicted 4868 | . 151 300 . 219 239 . 356 . . 2375 1228 Guns 3484 | . 151 300 . 219 239 . 356 . . 1753 466 Cannons . | . . . . . . . . . . . . Explosions 1384 | . . . . . . . . . . 622 762 Melee . | . . . . . . . . . . . . Ramming . | . . . . . . . . . . . . Kinetic 3484 | . 151 300 . 219 239 . 356 . . 1753 466 Thermal 337 | . . . . . . . . . . . 337 Explosive 232 | . . . . . . . . . . 232 . Electromagnetic 815 | . . . . . . . . . . 390 425 Impact . | . . . . . . . . . . . . Slashing . | . . . . . . . . . . . . Piercing . | . . . . . . . . . . . . Highest Corruption 18 | . . . . . . . 1 . . 18 2 Average Corruption 8 | . . . . . . . 1 . . 8 1 Corruption Purged . | . . . . . . . . . . . . Corruption Blocked . | . . . . . . . . . . . . Effects 42 | . . . . . . . . . . 39 3 Message Errors 11 | . . . . . . . . . . 9 2 Matter Fused 11 | . . . . . . . . . . 11 . Heat Flow Errors 6 | . . . . . . . . . . 6 . Energy Discharges 3 | . . . . . . . . . . 2 1 Parts Rejected 1 | . . . . . . . . . . 1 . Data Loss (minor) 4 | . . . . . . . . . . 4 . Data Loss (major) 1 | . . . . . . . . . . 1 . Misfires 3 | . . . . . . . . . . 3 . Alerts 1 | . . . . . . . . . . 1 . Misdirections 1 | . . . . . . . . . . 1 . Overload Shots . | . . . . . . . . . . . . Overflow Damage 31 | . . . . . . . . . . 6 25 Projectiles . | . . . . . . . . . . . . Explosions 31 | . . . . . . . . . . 6 25 Melee . | . . . . . . . . . . . . Knockbacks . | . . . . . . . . . . . . Impact . | . . . . . . . . . . . . Kinetic . | . . . . . . . . . . . . Secondary . | . . . . . . . . . . . . Self-Inflicted Damage 50 | . . . . . . . . . . 37 13 Shots 4 | . . . . . . . . . . 3 1 Rammed . | . . . . . . . . . . . . Targets Rammed . | . . . . . . . . . . . . Kicked . | . . . . . . . . . . . . Crushed . | . . . . . . . . . . . . Highest Temperature 158 | . 12 12 . 24 . . . . . 158 . Average Temperature 31 | . 6 5 . 11 . . . . . 68 . Received Heat Transfer 483 | . . . . 84 . . 342 . . 12 45 Siege Activations . | . . . . . . . . . . . . Robots Corrupted 3 | . . . . . . . . . . 2 1 Combat Hostiles 3 | . . . . . . . . . . 2 1 Parts Fried 7 | . . . . . . . . . . 5 2 Impact Corruptions . | . . . . . . . . . . . . Robots Melted . | . . . . . . . . . . . . Combat Hostiles . | . . . . . . . . . . . . Parts Melted . | . . . . . . . . . . . . Heat Transferred 250 | . . . . . . . . . . . 250 Parts Sabotaged . | . . . . . . . . . . . . Parts Stolen . | . . . . . . . . . . . . Parts Stripped . | . . . . . . . . . . . . Power Chain Reactions 1 | . . . . . . . . . . . 1 Missiles Intercepted . | . . . . . . . . . . . . Alert | -11 -10 -10 -10 -9 -8 -7 -7 -6 -6 -6 -5 ------- Run | Scr Mat Min Exi Min Mat Fac DSF Fac Was Fac Fac Peak Influence 455 | . 123 152 . 70 159 2 106 55 19 310 455 Initial 151 | . . 47 . . 27 2 1 55 19 . 151 Average 76 | . 56 121 . 13 36 2 56 55 4 99 188 Maximum Alert Level 2 | . . . . . . . . . . 1 2 Low Security (%) 91 | 100 100 100 . 100 100 100 100 100 100 81 73 Level 1 8 | . . . . . . . . . . 18 25 Level 2 . | . . . . . . . . . . . 1 Level 3 . | . . . . . . . . . . . . Level 4 . | . . . . . . . . . . . . Level 5 . | . . . . . . . . . . . . High Security . | . . . . . . . . . . . . Max Security . | . . . . . . . . . . . . Squads Dispatched 18 | . 1 . . . 1 1 1 . . 9 5 Investigation 1 | . . . . . . . . . . . 1 Extermination 5 | . . . . . . 1 . . . 4 . Reinforcement 9 | . 1 . . . 1 . 1 . . 4 2 Assault . | . . . . . . . . . . . . Garrison 3 | . . . . . . . . . . 1 2 Intercept . | . . . . . . . . . . . . Searches Triggered . | . . . . . . . . . . . . Construction Impeded 2 | . . . . . . . . . . 1 1 Haulers Reinforced 1 | . . . . . . . . . . 1 . Active Scanning Responses . | . . . . . . . . . . . . Cargo Convoy Interrupts . | . . . . . . . . . . . . Stealth | -11 -10 -10 -10 -9 -8 -7 -7 -6 -6 -6 -5 --------- Run | Scr Mat Min Exi Min Mat Fac DSF Fac Was Fac Fac Distress Signals 5 | . 2 . . . . . . . . 2 1 Communications Jammed . | . . . . . . . . . . . . Distress Signals . | . . . . . . . . . . . . Times Spotted 69 | . 8 3 . 3 5 . 13 . 5 19 13 Peak Tracking Total 8 | . 5 3 . 3 4 1 8 . 5 4 5 Tactical Retreats 5 | . . . . . 1 . 1 . . 2 1 Traps | -11 -10 -10 -10 -9 -8 -7 -7 -6 -6 -6 -5 ------- Run | Scr Mat Min Exi Min Mat Fac DSF Fac Was Fac Fac Traps Triggered 8 | . 1 . . . 1 . 2 1 . 3 . Indirectly . | . . . . . . . . . . . . Trap Hack Attempts . | . . . . . . . . . . . . Triggered . | . . . . . . . . . . . . Disarmed . | . . . . . . . . . . . . Reprogrammed . | . . . . . . . . . . . . Reused . | . . . . . . . . . . . . Traps Extracted . | . . . . . . . . . . . . Installed . | . . . . . . . . . . . . Triggered . | . . . . . . . . . . . . Machines | -11 -10 -10 -10 -9 -8 -7 -7 -6 -6 -6 -5 ---------- Run | Scr Mat Min Exi Min Mat Fac DSF Fac Was Fac Fac Machines Disabled 12 | . . 1 . . . . . . . 8 3 Max in Single Turn 6 | . . 1 . . . . . . . 6 2 Garrison Access 1 | . . . . . . . . . . 1 . Machines Sabotaged . | . . . . . . . . . . . . Garrisons Compromised . | . . . . . . . . . . . . Overloaded Fab Kills . | . . . . . . . . . . . . Hacking | -11 -10 -10 -10 -9 -8 -7 -7 -6 -6 -6 -5 --------- Run | Scr Mat Min Exi Min Mat Fac DSF Fac Was Fac Fac Machines Accessed 10 | . 2 . 1 . 2 1 . 1 . 2 1 Terminals 5 | . 2 . . . 2 1 . . . . . Fabricators . | . . . . . . . . . . . . Repair Stations 2 | . . . . . . . . . . 1 1 Recycling Units . | . . . . . . . . . . . . Scanalyzers . | . . . . . . . . . . . . Garrison Access 2 | . . . . . . . . 1 . 1 . Total Hacks 28 | . 4 . 1 . 2 2 . 1 . 6 12 Successful 19 | . 1 . 1 . 2 1 . . . 5 9 Failed 9 | . 3 . . . . 1 . 1 . 1 3 Catastrophic 3 | . 2 . . . . . . 1 . . . Database Lockouts . | . . . . . . . . . . . . Manual 5 | . 3 . 1 . 1 . . . . . . Terminals 8 | . 4 . . . 2 2 . . . . . Fabricators . | . . . . . . . . . . . . Repair Stations 16 | . . . . . . . . . . 4 12 Recycling Units . | . . . . . . . . . . . . Scanalyzers . | . . . . . . . . . . . . Garrison Access 3 | . . . . . . . . 1 . 2 . Terminal Hacks 4 | . 1 . 1 . 1 1 . . . . . Open DSF 1 | . . . . . . 1 . . . . . Zone Layout 2 | . 1 . . . 1 . . . . . . EX-Prototype ID Bank 1 | . . . 1 . . . . . . . . Fabricator Hacks . | . . . . . . . . . . . . Repair Station Hacks 13 | . . . . . . . . . . 4 9 Scan Component 7 | . . . . . . . . . . 2 5 Repair 6 | . . . . . . . . . . 2 4 Recycling Unit Hacks . | . . . . . . . . . . . . Scanalyzer . | . . . . . . . . . . . . Garrison Access Hacks 1 | . . . . . . . . . . 1 . Seal Access 1 | . . . . . . . . . . 1 . Unauthorized Hacks 1 | . . . . . 1 . . . . . . Terminals 1 | . . . . . 1 . . . . . . Assimilate 1 | . . . . . 1 . . . . . . Fabricators . | . . . . . . . . . . . . Repair Stations . | . . . . . . . . . . . . Recycling Units . | . . . . . . . . . . . . Scanalyzers . | . . . . . . . . . . . . Garrison Access . | . . . . . . . . . . . . Data Cores Recovered . | . . . . . . . . . . . . Used . | . . . . . . . . . . . . Hacking Detections 6 | . 2 . . . . 1 . 1 . 1 1 Full Trace Events 1 | . . . . . . . . . . . 1 Feedback Events . | . . . . . . . . . . . . Feedback Blocked . | . . . . . . . . . . . . Robot Schematics Acquired . | . . . . . . . . . . . . Robots Built . | . . . . . . . . . . . . Authchips . | . . . . . . . . . . . . Time . | . . . . . . . . . . . . Total Robot Build Rating . | . . . . . . . . . . . . Part Schematics Acquired . | . . . . . . . . . . . . Parts Built . | . . . . . . . . . . . . Authchips . | . . . . . . . . . . . . Time . | . . . . . . . . . . . . Total Part Build Rating . | . . . . . . . . . . . . Parts Repaired 6 | . . . . . . . . . . 2 4 Time 258 | . . . . . . . . . . 82 176 Parts Recycled . | . . . . . . . . . . . . Recycled Matter . | . . . . . . . . . . . . Retrieved Matter . | . . . . . . . . . . . . Retrieved Components . | . . . . . . . . . . . . Parts Scanalyzed . | . . . . . . . . . . . . Part Schematics Acquired . | . . . . . . . . . . . . Parts Damaged . | . . . . . . . . . . . . Bothacking | -11 -10 -10 -10 -9 -8 -7 -7 -6 -6 -6 -5 ------------ Run | Scr Mat Min Exi Min Mat Fac DSF Fac Was Fac Fac Used RIF Installer . | . . . . . . . . . . . . Robots Hacked . | . . . . . . . . . . . . Non-combat . | . . . . . . . . . . . . Combat . | . . . . . . . . . . . . Robot Hacks Applied . | . . . . . . . . . . . . Relay Couplers Released . | . . . . . . . . . . . . Fabnet Peak Effective % . | . . . . . . . . . . . . Robots Rewired . | . . . . . . . . . . . . Allies Hacked . | . . . . . . . . . . . . Hacks Repelled . | . . . . . . . . . . . . Allies | -11 -10 -10 -10 -9 -8 -7 -7 -6 -6 -6 -5 -------- Run | Scr Mat Min Exi Min Mat Fac DSF Fac Was Fac Fac Total Allies 1 | . . . . . . . . . 1 . . Largest Group 1 | . . . . . . . . . 1 . . Highest-Rated Group 31 | . . . . . . . . . 31 . . Highest-Rated Ally 31 | . . . . . . . . . 31 . . Total Orders . | . . . . . . . . . . . . Ally Attacks 5 | . . . . . . . . . 5 . . Total Damage 105 | . . . . . . . . . 105 . . Kills . | . . . . . . . . . . . . Allies Corrupted . | . . . . . . . . . . . . Allies Melted . | . . . . . . . . . . . . Intel | -11 -10 -10 -10 -9 -8 -7 -7 -6 -6 -6 -5 ------- Run | Scr Mat Min Exi Min Mat Fac DSF Fac Was Fac Fac Robot Analysis Total . | . . . . . . . . . . . . Derelict Logs Recovered 3 | . . 1 . 2 . . . . . . . Drone Launches . | . . . . . . . . . . . . Drone Recoveries . | . . . . . . . . . . . . Exploration | -11 -10 -10 -10 -9 -8 -7 -7 -6 -6 -6 -5 ------------- Run | Scr Mat Min Exi Min Mat Fac DSF Fac Was Fac Fac Turns Passed 5965 | 55 174 489 474 675 621 257 364 209 148 2123 376 Spaces Moved 3488 | 39 104 237 248 341 241 133 139 108 144 1645 109 Core 6 | 6 . . . . . . . . . . . Treads . | . . . . . . . . . . . . Legs 3482 | 33 104 237 248 341 241 133 139 108 144 1645 109 Wheels . | . . . . . . . . . . . . Hover . | . . . . . . . . . . . . Flight . | . . . . . . . . . . . . Fastest Speed 45 | 50 120 190 190 190 190 190 190 190 45 90 90 Average Speed 134 | 115 126 190 190 190 190 190 190 190 90 93 90 Slowest Speed 190 | 120 190 190 190 190 190 190 190 190 190 170 90 Overloaded Moves 37 | . . . . . . . . . 37 . . Propulsion Burnouts . | . . . . . . . . . . . . Robots Hopped . | . . . . . . . . . . . . Cave-ins Triggered . | . . . . . . . . . . . . Exploration Rate (%) 38 | 4 33 53 61 86 23 4 83 4 77 31 3 Regions Visited 11 Branch Regions 3 Pre-discovered Areas 1 | . . . . 1 . . . . . . . Known Exits Taken 1 | . . . . . . 1 . . . . . Unknown Exits Taken 7 | 1 1 1 1 1 1 . . . . 1 . Scrap Searched 4 | . . 1 . 3 . . . . . . . Spaces Dug 14 | . . . . . . . . . . 14 . Terrain Destroyed 192 | . . . . . . . . . . 159 33 Melee . | . . . . . . . . . . . . Projectile . | . . . . . . . . . . . . AOE 192 | . . . . . . . . . . 159 33 Terrain Rammed . | . . . . . . . . . . . . Walls Destroyed . | . . . . . . . . . . . . Machines Disabled . | . . . . . . . . . . . . Actions | -11 -10 -10 -10 -9 -8 -7 -7 -6 -6 -6 -5 --------- Run | Scr Mat Min Exi Min Mat Fac DSF Fac Was Fac Fac Total 4523 | 45 129 257 252 358 392 137 221 114 158 2110 350 Wait 694 | . 10 2 . 2 112 . 54 . 8 296 210 Move 3478 | 38 103 236 247 340 240 132 138 108 143 1644 109 Hop . | . . . . . . . . . . . . Pick Up 31 | . 2 5 3 1 5 . 3 1 . 11 . Fast Attach 29 | 6 1 1 . . 6 2 1 . 2 6 4 Attach 8 | . . . . . 3 . . 1 . 3 1 Detach 2 | . . . . . 2 . . . . . . Swap 26 | 1 2 . . 3 4 2 3 2 3 6 . Drop 45 | . 1 1 2 4 11 1 6 2 2 15 . Fire 199 | . 10 12 . 8 9 . 10 . . 124 26 Melee . | . . . . . . . . . . . . Ram . | . . . . . . . . . . . . Kick . | . . . . . . . . . . . . Crush . | . . . . . . . . . . . . Escape Stasis 11 | . . . . . . . 6 . . 5 . Rewire . | . . . . . . . . . . . . Trap . | . . . . . . . . . . . . Miscellaneous . | . . . . . . . . . . . . Route ------- -11/Scrapyard -10/Materials -10/Mines (discovered 2 exits: [*Mat] / *Exi) -10/Exiles -9/Mines (discovered 2 exits: *Mat x2) -8/Materials (discovered 2 exits: *Fac / Sto) -7/Factory -7/DSF -6/Factory -6/Waste -6/Factory -5/Factory History --------- Turn | Location | Event 17 | -11/Scrapyard | Discovered new exit (range 15) 56 | -11/Scrapyard | Entered Materials 165 | -10/Materials | Discovered new exit (range 14) 230 | -10/Materials | Entered Mines 304 | -10/Mines | YI-UF0 nonchalantly dropped a Grenade Launcher on the ground 310 | -10/Mines | Build established: Mutant 361 | -10/Mines | Destroyed YI-UF0 376 | -10/Mines | Found Prototype Launcher 444 | -10/Mines | Discovered new exit (range 13) 666 | -10/Mines | Learned Materials garrison access intel 711 | -10/Mines | Deemed a non-threat by the Exiles lab entrance 711 | -10/Mines | Discovered new exit (range 5) 719 | -10/Mines | Entered Exiles 771 | -10/Exiles | Met 8R-AWN 799 | -10/Exiles | Met EX-HEX 851 | -10/Exiles | Met EX-BIN 871 | -10/Exiles | Aligned with FarCom system 873 | -10/Exiles | Given EX-Vault access code 928 | -10/Exiles | Opened EX-Vault 939 | -10/Exiles | Found Potential Leg 941 | -10/Exiles | Found Potential Leg 982 | -10/Exiles | Warned to stay clear of 0b10 Research branches 1037 | -10/Exiles | Met EX-DEC 1172 | -10/Exiles | Discovered new exit (range 14) 1193 | -10/Exiles | Left Exiles lab with Potential Leg 1193 | -10/Exiles | Entered Mines 1245 | -9/Mines | Discovered new exit (range 12) 1315 | -9/Mines | Learned location of Recycling (-8) 1482 | -9/Mines | Learned location of 1 exit from Materials 1668 | -9/Mines | Found a damaged Exp. Sensor Array with a note attached 1677 | -9/Mines | Found Prototype Device 1840 | -9/Mines | Discovered new exit (range 15) 1868 | -9/Mines | Entered Materials 1868 | -8/Materials | Evolved 4 slots: Utility x4 1869 | -8/Materials | Identified exit to Storage 2089 | -8/Materials | Identified Exp. Sensor Array 2235 | -8/Materials | Identified YI-UF0's Doublenader 2457 | -8/Materials | Discovered new exit (range 5) 2489 | -8/Materials | Entered Factory 2489 | -7/Factory | Evolved 2 slots: Utility x2 2746 | -7/Factory | Identified exit to DSF 2746 | -7/Factory | Entered DSF 2810 | -7/DSF | Additional patrols routed to DSF 3084 | -7/DSF | Discovered new exit (range 14) 3110 | -7/DSF | Entered Factory 3110 | -6/Factory | Evolved 2 slots: Utility x2 3319 | -6/Factory | Sucked down chute 3319 | -6/Factory | Entered Waste 3320 | -6/Waste | Met a frightened Derelict 3334 | -6/Waste | Spotted C-40 Crusher 3356 | -6/Waste | Spotted C-40 Crusher 3377 | -6/Waste | Spotted C-40 Crusher 3385 | -6/Waste | Spotted C-40 Crusher 3399 | -6/Waste | Spotted C-40 Crusher 3453 | -6/Waste | Spotted C-40 Crusher 3460 | -6/Waste | Discovered new exit (range 14) 3467 | -6/Waste | Entered Factory 3647 | -6/Factory | Repaired Lrn. Tractor Beam 3692 | -6/Factory | Repaired Imp. Medium Armor Plating 4628 | -6/Factory | Found Launcher Loader 5062 | -6/Factory | System corruption reached 10% 5505 | -6/Factory | Garrison activated, responded to threat 5575 | -6/Factory | Discovered new exit (range 5) 5590 | -6/Factory | Entered another Factory area 5590 | -5/Factory | Evolved 2 slots: Utility x2 5650 | -5/Factory | Repaired Shock Absorption System 5701 | -5/Factory | Repaired Imp. Proton Missile Launcher 5747 | -5/Factory | Repaired Imp. Medium Armor Plating 5786 | -5/Factory | Repaired Reflective Plating 5853 | -5/Factory | Garrison activated, responded to threat 5966 | -5/Factory | Self-destructed Last Messages --------------- 05958_ U-05 Engineer lays Concrete. 05958_ Imp. Utility Shielding destroyed. 05959_ U-05 Engineer lays Concrete. 05960_ Power Conduit explodes. 05960_ Emergency Access malfunctions. 05960_ Power Conduit explodes. 05960_ Destroyed Lgt. Angular Momentum Engine. 05960_ G-50 Soldier destroyed. 05960_ U-05 Engineer lays Concrete. 05961_ Acquired 10 matter. 05961_ U-05 Engineer lays Concrete. 05962_ R-10 Processor collects Imp. Medium Armor Plating. 05962_ U-05 Engineer lays Concrete. 05964_ Acquired 10 matter. 05964_ U-05 Engineer lays Concrete. 05965_ R-10 Processor collects Corrupted Imp. Treads. 05965_ Shock Absorption System destroyed. 05966_ S3&MS